bitfinex/quotes_SOLUSD_20260208
["timestamp","ask_amount","ask_price","bid_price","bid_amount"]
[1770523021199,4.07253247,86.85,86.827,15.20356917]
[1770523021396,4.07253247,86.85,86.827,3.6864533]
[1770523022217,1.78159695,86.849,86.82,11.51806126]
[1770523022420,4.07253247,86.84,86.818,3.6864533]
[1770523022729,5.85420843,86.84,86.818,3.6864533]
[1770523022938,1.78167596,86.855,86.823,3.6864533]
[1770523023236,4.07253247,86.85,86.828,3.6864533]
[1770523023607,1.78167596,86.849,86.828,3.6864533]
[1770523024037,1.78175406,86.839,86.816,11.51855817]
[1770523024218,1.78175406,86.839,86.817,3.6864533]
[1770523024539,1.78175406,86.839,86.821,11.51786108]
[1770523024723,1.78175406,86.839,86.817,3.6864533]
[1770523025419,11.51423735,86.849,86.811,3.6864533]
[1770523025420,4.07253247,86.83,86.811,3.6864533]
[1770523025723,4.07253247,86.83,86.806,3.70244881]
[1770523026313,1.78266757,86.829,86.806,3.70244881]
[1770523027829,1.78348476,86.84,86.808,3.70244881]
[1770523028013,1.78348476,86.839,86.808,3.70244881]
[1770523028839,1.78388633,86.854,86.811,3.70244881]
[1770523029015,4.07253247,86.84,86.811,3.70244881]
[1770523029538,4.07253247,86.84,86.811,3.20244881]
[1770523030034,5.13032502,86.878,86.812,40.31700685]
[1770523030333,2.28428329,86.849,86.812,40.31700685]
[1770523030514,4.07253247,86.84,86.812,40.31700685]
[1770523031514,6.36696728,86.84,86.813,3.70244881]
[1770523031931,4.08229159,86.84,86.813,3.70244881]
[1770523032713,6.36811765,86.84,86.815,3.50636869]
[1770523034030,4.08229159,86.83,86.815,3.50636869]
[1770523034236,4.08229159,86.83,86.799,3.50636869]
[1770523034237,2.28620073,86.829,86.799,3.50636869]
[1770523034437,2.28620073,86.829,86.802,3.50636869]
[1770523035337,2.28620073,86.829,86.807,3.50636869]
[1770523035845,2.28620073,86.829,86.807,2.50636869]
[1770523037237,2.28620073,86.829,86.807,2.00636869]
[1770523040443,3.64790141,86.828,86.807,2.00636869]
[1770523040642,4.08229159,86.82,86.797,3.50636869]
[1770523041224,3.64790141,86.822,86.797,3.50636869]
[1770523041418,4.08229159,86.82,86.797,3.50636869]
[1770523041642,3.64790141,86.822,86.797,3.50636869]
[1770523041942,3.64790141,86.828,86.799,3.50636869]
[1770523043343,28.78750225,86.844,86.787,28.80586866]
[1770523043344,3.64790141,86.819,86.793,3.50636869]
[1770523043919,4.08229159,86.82,86.801,3.50636869]
[1770523044241,3.64790141,86.827,86.801,3.50636869]
[1770523045236,3.64790141,86.819,86.801,3.50636869]
[1770523046236,3.64790141,86.819,86.801,3.00636869]
[1770523046835,3.64790141,86.819,86.801,2.50636869]
[1770523048741,4.08229159,86.82,86.801,2.50636869]
[1770523049722,7.730193,86.82,86.801,2.50636869]
[1770523050343,4.08229159,86.82,86.801,2.50636869]
[1770523050726,3.64790141,86.825,86.802,11.52047187]
[1770523050931,3.64790141,86.825,86.803,3.50636869]
[1770523051940,3.64790141,86.825,86.805,3.50636869]
[1770523052233,4.08229159,86.82,86.805,3.50636869]
[1770523052432,4.08229159,86.84,86.805,3.50636869]
[1770523052622,3.64790141,86.839,86.805,3.50636869]
[1770523053417,3.64790141,86.829,86.805,3.50636869]
[1770523054037,4.08229159,86.82,86.805,3.50636869]
[1770523054240,3.64790141,86.829,86.805,3.50636869]
[1770523054844,3.64790141,86.829,86.807,3.50636869]
[1770523055337,4.08229159,86.83,86.807,3.50636869]
[1770523055539,3.64790141,86.839,86.807,3.50636869]
[1770523055723,4.08229159,86.83,86.807,3.50636869]
[1770523056124,3.64790141,86.839,86.809,3.52118189]
[1770523056533,3.48682383,86.829,86.808,11.5196756]
[1770523056931,3.48682383,86.829,86.808,15.04085749]
[1770523057134,3.48682383,86.829,86.809,3.52118189]
[1770523058640,3.48682383,86.829,86.811,3.52118189]
[1770523058843,4.08229159,86.83,86.811,3.52118189]
[1770523059527,7.56911542,86.83,86.811,3.52118189]
[1770523059842,4.08229159,86.82,86.812,11.51914481]
[1770523060039,3.48682383,86.829,86.804,11.52019456]
[1770523060229,3.48682383,86.819,86.804,11.52019456]
[1770523060431,4.08229159,86.82,86.805,3.52118189]
[1770523069466,3.48682383,86.819,86.78,3.62118189]
[1770523069765,3.48682383,86.805,86.78,3.62118189]
[1770523070639,7.56911542,86.81,86.78,3.62118189]
[1770523070837,3.48682383,86.809,86.781,11.52325969]
[1770523071260,3.48682383,86.809,86.782,3.52118189]
[1770523072862,3.48682383,86.809,86.784,3.52118189]
[1770523073057,4.08229159,86.81,86.784,3.52118189]
[1770523073660,3.48682383,86.818,86.784,3.52118189]
[1770523074374,4.08229159,86.82,86.786,3.52118189]
[1770523074539,3.48682383,86.823,86.791,3.52118189]
[1770523075563,4.08229159,86.82,86.791,3.52118189]
[1770523076873,7.56911542,86.81,86.786,3.52118189]
[1770523077169,4.08229159,86.81,86.786,3.52118189]
[1770523078375,4.08229159,86.81,86.788,3.52118189]
[1770523078673,4.08229159,86.82,86.788,3.52118189]
[1770523078975,3.48682383,86.819,86.788,3.52118189]
[1770523079676,3.48682383,86.819,86.79,3.52118189]
[1770523079849,4.08229159,86.82,86.79,3.52118189]
[1770523080055,7.56911542,86.83,86.791,3.52118189]
[1770523080256,4.08229159,86.83,86.791,3.52118189]
[1770523080461,3.48682383,86.819,86.791,3.52118189]
[1770523081778,3.48682383,86.809,86.791,3.52118189]
[1770523082881,4.08229159,86.82,86.793,3.52118189]
[1770523084473,7.56911542,86.82,86.795,3.52118189]
[1770523084896,3.48682383,86.819,86.795,3.52118189]
[1770523087506,3.48682383,86.819,86.797,3.60231839]
[1770523088776,3.48682383,86.819,86.799,3.60231839]
[1770523090795,3.52351338,86.823,86.801,3.60231839]
[1770523090990,5.13032502,86.854,86.801,3.60231839]
[1770523090991,3.52351338,86.834,86.801,3.60231839]
[1770523091576,3.52351338,86.829,86.801,3.60231839]
[1770523093083,3.52351338,86.829,86.803,3.60420146]
[1770523094107,3.71057779,86.834,86.803,3.60420146]
[1770523094306,3.71057779,86.839,86.803,3.60420146]
[1770523094499,3.71057779,86.839,86.811,3.60420146]
[1770523095300,3.71057779,86.839,86.812,11.51914481]
[1770523095485,3.71057779,86.839,86.813,3.60420146]
[1770523096385,3.71057779,86.847,86.813,3.60420146]
[1770523098001,7.793357,86.84,86.815,3.60420146]
[1770523098802,2.4165002,86.839,86.815,3.60420146]
[1770523100204,2.4165002,86.839,86.817,3.60420146]
[1770523101795,2.4165002,86.839,86.819,3.60420146]
[1770523104518,2.4165002,86.839,86.821,3.60420146]
[1770523104884,4.08277921,86.85,86.821,3.60420146]
[1770523105090,4.08277921,86.86,86.821,3.60420146]
[1770523105589,3.71057779,86.859,86.821,3.60420146]
[1770523106309,3.71057779,86.859,86.822,40.31236322]
[1770523106497,3.71057779,86.859,86.823,3.60420146]
[1770523108527,3.71057779,86.849,86.825,3.60420146]
[1770523108808,4.08277921,86.85,86.825,3.60420146]
[1770523109213,3.71057779,86.854,86.825,3.60420146]
[1770523109395,3.71057779,86.859,86.825,3.60420146]
[1770523113717,3.71057779,86.859,86.827,3.60420146]
[1770523114410,15.2236044,86.859,86.827,3.60420146]
[1770523114594,3.71057779,86.858,86.827,3.60420146]
[1770523115297,3.71057779,86.849,86.827,3.60420146]
[1770523116516,3.71057779,86.849,86.829,3.66823721]
[1770523118121,3.71057779,86.849,86.831,3.66823721]
[1770523118509,3.71057779,86.849,86.826,3.66823721]
[1770523118908,3.71057779,86.849,86.828,3.66823721]
[1770523119117,3.71057779,86.849,86.813,28.79744913]
[1770523119118,3.71057779,86.849,86.831,3.66823721]
[1770523119322,3.74990779,86.859,86.831,3.66823721]
[1770523119804,3.74990779,86.858,86.831,3.66823721]
[1770523120004,1.74990779,86.858,86.831,3.66823721]
[1770523120913,1.74990779,86.858,86.833,3.66823721]
[1770523121499,4.08277921,86.85,86.833,3.66823721]
[1770523121896,2.8064262,86.849,86.833,3.66823721]
[1770523122318,2.8064262,86.849,86.828,3.66823721]
[1770523123628,2.80656395,86.859,86.83,3.66823721]
[1770523126325,2.80735093,86.865,86.832,3.66823721]
[1770523126520,2.80735093,86.879,86.832,3.66823721]
[1770523127404,2.80735093,86.879,86.834,3.66823721]
[1770523127722,2.80735093,86.879,86.841,3.66823721]
[1770523128806,2.80886431,86.883,86.851,3.66823721]
[1770523129306,2.80886431,86.879,86.851,3.66823721]
[1770523129503,2.80886431,86.879,86.853,3.66823721]
[1770523129707,1.32919655,86.884,86.853,3.66823721]
[1770523131315,1.32919655,86.884,86.855,3.66823721]
[1770523132529,2.81032613,86.889,86.855,3.66823721]
[1770523133131,2.81080226,86.899,86.871,3.66823721]
[1770523133343,2.81080226,86.899,86.86,4.08277921]
[1770523133344,2.81080226,86.899,86.873,3.66823721]
[1770523134321,6.89405213,86.89,86.873,3.66823721]
[1770523134919,2.81173817,86.889,86.86,3.66823721]
[1770523136134,2.81173817,86.889,86.862,3.66823721]
[1770523137237,2.8126527,86.899,86.862,3.66823721]
[1770523138625,2.8126527,86.899,86.86,4.08277921]
[1770523138626,2.8126527,86.899,86.864,3.66823721]
[1770523139639,2.8126527,86.899,86.866,3.66823721]
[1770523140337,2.8126527,86.899,86.865,40.29240775]
[1770523140338,2.8126527,86.899,86.871,3.66823721]
[1770523140543,0.2,86.9,86.871,3.66823721]
[1770523141543,0.2,86.9,86.873,3.66823721]
[1770523141719,0.2,86.9,86.872,11.51118887]
[1770523141720,2.81441957,86.91,86.882,3.66823721]
[1770523142324,2.81484868,86.909,86.882,3.66823721]
[1770523142634,6.89762789,86.9,86.882,2.58082134]
[1770523142832,3.74990779,86.899,86.882,2.58082134]
[1770523143031,3.74990779,86.899,86.872,40.28916105]
[1770523144124,4.08277921,86.91,86.872,40.28916105]
[1770523144125,3.74990779,86.909,86.872,40.28916105]
[1770523144622,3.74990779,86.909,86.875,3.66823721]
[1770523145849,3.74990779,86.909,86.881,3.5805136]
[1770523146940,3.74990779,86.909,86.883,3.5805136]
[1770523148550,3.62473784,86.917,86.883,3.5805136]
[1770523150352,3.62473784,86.917,86.885,3.5805136]
[1770523151156,3.82473784,86.92,86.891,3.5805136]
[1770523151445,3.62473784,86.919,86.891,3.5805136]
[1770523154253,3.62473784,86.919,86.892,40.27988767]
[1770523154433,3.62473784,86.919,86.893,3.5814125]
[1770523154743,0.2,86.92,86.893,3.5814125]
[1770523155050,3.57997526,86.899,86.882,3.5814125]
[1770523155346,3.57997526,86.899,86.889,11.50881228]
[1770523155733,3.57997526,86.909,86.889,11.50881228]
[1770523155938,3.57997526,86.916,86.893,3.5814125]
[1770523156648,3.57997526,86.916,86.895,3.5814125]
[1770523156946,3.77997526,86.92,86.895,3.5814125]
[1770523158458,7.85560883,86.92,86.895,3.5814125]
[1770523158748,3.57997526,86.919,86.895,3.5814125]
[1770523160158,3.57997526,86.919,86.896,11.50800957]
[1770523160454,3.57997526,86.919,86.897,3.5814125]
[1770523162350,0.2,86.92,86.898,11.50774471]
[1770523162653,3.57997526,86.919,86.899,3.5814125]
[1770523172865,3.57997526,86.917,86.894,3.5814125]
[1770523177947,4.07563357,86.91,86.885,3.71431553]
[1770523178153,3.62738661,86.909,86.885,3.71431553]
[1770523178354,3.62738661,86.915,86.889,11.50881294]
[1770523178647,3.62738661,86.915,86.89,3.71431553]
[1770523181759,3.62738661,86.915,86.892,3.71431553]
[1770523186861,3.62738661,86.909,86.892,3.71431553]
[1770523188772,3.62738661,86.909,86.894,3.71431553]
[1770523189353,3.62738661,86.919,86.894,3.71431553]
[1770523190773,3.62738661,86.918,86.894,3.71431553]
[1770523191167,3.62738661,86.909,86.888,3.71431553]
[1770523191976,3.62738661,86.909,86.878,11.51039029]
[1770523192150,3.62738661,86.899,86.861,3.71431553]
[1770523193273,3.62738661,86.899,86.863,3.71431553]
[1770523194570,3.62738661,86.899,86.865,3.71431553]
[1770523195554,3.62738661,86.899,86.867,3.71431553]
[1770523197474,3.62738661,86.899,86.869,3.71431553]
[1770523197678,3.62738661,86.889,86.869,3.71431553]
[1770523197882,3.62738661,86.894,86.869,3.71431553]
[1770523198384,3.62738661,86.908,86.871,3.71431553]
[1770523198749,3.62738661,86.908,86.881,3.71431553]
[1770523199457,3.62738661,86.908,86.883,3.71431553]
[1770523199969,3.62738661,86.912,86.883,3.71431553]
[1770523201672,3.62738661,86.912,86.885,3.71431553]
[1770523203468,3.62738661,86.909,86.887,3.71431553]
[1770523203872,3.62738661,86.909,86.886,11.50933406]
[1770523203873,3.62738661,86.899,86.875,11.51067303]
[1770523204670,3.62738661,86.889,86.875,11.51067303]
[1770523205388,4.07563357,86.89,86.889,1275.83486176]
[1770523205555,4.07563357,86.9,86.889,1275.83486176]
[1770523206679,4.07563357,86.9,86.889,1275.46653442]
[1770523207874,4.07563357,86.91,86.889,1275.46653442]
[1770523208876,11.50496439,86.919,86.89,3.84665498]
[1770523209282,4.07563357,86.91,86.89,3.84665498]
[1770523214283,3.61397844,86.944,86.901,3.52389016]
[1770523214454,3.61397844,86.944,86.911,3.52389016]
[1770523214660,3.61397844,86.94,86.913,3.52389016]
[1770523215688,3.61397844,86.94,86.914,11.50562625]
[1770523215863,3.61397844,86.946,86.915,3.52389016]
[1770523216875,7.68961201,86.94,86.915,3.52389016]
[1770523217458,7.68656042,86.94,86.915,3.52389016]
[1770523217666,3.61397844,86.939,86.915,3.52389016]
[1770523220584,3.61397844,86.939,86.911,3.52389016]
[1770523220769,3.61397844,86.929,86.904,3.52389016]
[1770523229482,3.61397844,86.929,86.906,3.52389016]
[1770523229975,3.61397844,86.919,86.896,3.52389016]
[1770523230175,7.68656042,86.91,86.896,3.52389016]
[1770523230585,4.07258198,86.91,86.896,3.52389016]
[1770523232475,3.61397844,86.929,86.901,3.52389016]
[1770523232677,4.07258198,86.91,86.895,3.52389016]
[1770523235598,3.72071813,86.929,86.897,3.52389016]
[1770523235800,3.72071813,86.929,86.899,3.70385455]
[1770523238906,3.72071813,86.929,86.89,28.77195386]
[1770523238907,3.72071813,86.929,86.901,3.70385455]
[1770523239985,3.72071813,86.929,86.903,3.70385455]
[1770523240295,4.07258198,86.91,86.899,3.70385455]
[1770523240674,3.72071813,86.919,86.899,3.70385455]
[1770523242382,3.72071813,86.927,86.903,3.70385455]
[1770523242582,3.72071813,86.932,86.903,3.70385455]
[1770523243480,15.57485529,86.94,86.903,3.70385455]
[1770523243481,3.72071813,86.939,86.903,3.70385455]
[1770523244505,3.72071813,86.929,86.903,3.70385455]
[1770523244686,3.72071813,86.919,86.903,3.70385455]
[1770523246005,3.72071813,86.909,86.889,1275.46653442]
[1770523246201,3.72071813,86.909,86.89,3.70385455]
[1770523250810,3.72071813,86.915,86.892,3.70385455]
[1770523252101,3.72071813,86.915,86.894,3.70385455]
[1770523255024,3.72071813,86.915,86.889,1275.46653442]
[1770523255318,3.72071813,86.915,86.89,3.70385455]
[1770523256212,3.72071813,86.913,86.89,3.70385455]
[1770523256825,3.72071813,86.909,86.89,3.70385455]
[1770523257803,3.72071813,86.918,86.89,3.70385455]
[1770523262232,3.72071813,86.923,86.892,3.70385455]
[1770523263520,4.07258198,86.92,86.892,3.70385455]
[1770523263725,3.72071813,86.919,86.892,3.70385455]
[1770523264330,3.72071813,86.919,86.894,3.70385455]
[1770523264632,3.72071813,86.931,86.894,3.70385455]
[1770523265223,3.72071813,86.939,86.894,3.70385455]
[1770523265429,3.72071813,86.939,86.901,3.70385455]
[1770523266109,3.72071813,86.939,86.911,3.50800414]
[1770523266509,3.72071813,86.939,86.913,3.50800414]
[1770523268339,3.72071813,86.939,86.915,3.50800414]
[1770523268512,3.69042472,86.949,86.915,3.50800414]
[1770523270031,0.2,86.95,86.921,3.50800414]
[1770523270208,0.2,86.95,86.922,11.50456731]
[1770523270209,3.69042472,86.949,86.922,11.50456731]
[1770523270409,3.69042472,86.949,86.923,3.50800414]
[1770523270940,0.2,86.95,86.923,3.50800414]
[1770523271803,0.2,86.95,86.931,3.50800414]
[1770523273215,3.79141824,86.964,86.933,3.67999202]
[1770523273530,3.79141824,86.964,86.941,3.67999202]
[1770523274132,3.79141824,86.98,86.951,3.67999202]
[1770523274515,3.79141824,86.979,86.951,3.67999202]
[1770523274922,3.79141824,86.969,86.951,3.67999202]
[1770523276820,3.79141824,86.969,86.952,11.50059803]
[1770523277017,3.79141824,86.976,86.953,3.67999202]
[1770523277919,3.79141824,86.976,86.955,3.67999202]
[1770523278841,3.79141824,86.99,86.955,3.67999202]
[1770523279035,7.86400022,86.98,86.955,3.67999202]
[1770523279339,3.79141824,86.979,86.955,3.67999202]
[1770523281144,3.79141824,86.979,86.957,3.67999202]
[1770523281742,3.79141824,86.989,86.957,3.67999202]
[1770523282839,3.79141824,86.989,86.959,3.67999202]
[1770523283346,4.06882117,86.98,86.959,3.67999202]
[1770523283532,7.86023941,86.98,86.959,3.67999202]
[1770523284242,28.74257004,86.979,86.943,3.67999202]
[1770523284445,28.74257004,86.979,86.895,57.54019718]
[1770523284446,3.79141824,86.949,86.909,3.67999202]
[1770523284632,3.79141824,86.939,86.923,11.50440799]
[1770523284950,3.79141824,86.939,86.924,3.67999202]
[1770523285128,3.79141824,86.949,86.924,3.67999202]
[1770523288838,4.06882117,86.95,86.926,3.67999202]
[1770523289031,28.74199435,86.981,86.925,11.50417026]
[1770523289032,3.79141824,86.969,86.931,3.67999202]
[1770523290252,3.79141824,86.979,86.941,3.67999202]
[1770523290965,3.79141824,86.979,86.943,3.67999202]
[1770523292045,3.79141824,86.989,86.951,3.67999202]
[1770523292353,3.79141824,86.989,86.961,3.67999202]
[1770523292751,3.79141824,86.994,86.961,3.67999202]
[1770523292951,3.79141824,86.994,86.963,3.67999202]
[1770523294539,3.79141824,86.994,86.965,3.67999202]
[1770523297940,4.06882117,86.99,86.967,3.77660255]
[1770523298259,3.79141824,86.994,86.967,3.77660255]
[1770523299660,0.2,87.0,86.967,3.77660255]
[1770523299839,0.2,87.0,86.973,3.77660255]
[1770523300766,3.91469083,87.0,86.973,3.77660255]
[1770523302368,3.91469083,87.0,86.975,3.77660255]
[1770523303463,3.91469083,87.0,86.977,3.77660255]
[1770523303963,0.2,87.0,86.977,3.77660255]
[1770523305165,3.91469083,87.0,86.979,3.77660255]
[1770523305667,3.91469083,87.0,86.941,5.13032502]
[1770523305668,3.71469083,86.999,86.971,3.77660255]
[1770523305849,3.71469083,86.999,86.855,46.05356483]
[1770523305850,3.71469083,86.989,86.957,3.77660255]
[1770523306166,3.71469083,86.989,86.97,3.77660255]
[1770523307352,3.71469083,86.989,86.972,3.77660255]
[1770523308066,3.71469083,86.999,86.972,3.77660255]
[1770523309861,3.71469083,86.999,86.931,5.13032502]
[1770523309862,3.71469083,86.999,86.974,3.77660255]
[1770523310066,0.2,87.0,86.974,3.77660255]
[1770523310257,3.91469083,87.0,86.974,3.77660255]
[1770523311267,3.91469083,87.0,86.975,11.49755676]
[1770523311450,3.91469083,87.0,86.976,3.77660255]
[1770523314267,3.91469083,87.0,86.978,3.77660255]
[1770523316976,3.91469083,87.0,86.98,3.77660255]
[1770523318496,3.91469083,87.0,86.982,3.77660255]
[1770523319175,3.71469083,87.009,86.982,3.77660255]
[1770523320470,3.71469083,87.009,86.984,3.77660255]
[1770523320871,7.783512,87.0,86.984,3.77660255]
[1770523321071,3.71469083,86.999,86.984,3.77660255]
[1770523322076,3.71469083,87.004,86.984,3.77660255]
[1770523325794,3.71469083,87.004,86.986,3.60449392]
[1770523328162,3.71017228,86.999,86.982,3.60449392]
[1770523329778,3.71017228,86.999,86.976,3.60449392]
[1770523330765,3.71017228,87.009,86.977,3.60449392]
[1770523332175,28.72627856,87.029,86.97,4.06882117]
[1770523332176,11.490066,87.032,86.98,3.60449392]
[1770523332367,3.71017228,87.029,87.001,3.60449392]
[1770523336594,3.71017228,87.029,87.002,11.49398864]
[1770523336974,3.56433573,87.019,87.002,11.49398864]
[1770523337371,3.56433573,87.019,86.91,11.48986417]
[1770523337372,3.56433573,87.009,86.983,11.49649068]
[1770523338099,3.56433573,87.009,86.983,14.99038323]
[1770523338796,3.56433573,86.999,86.973,3.49389255]
[1770523338997,3.56433573,86.999,86.974,14.99152223]
[1770523339494,3.56433573,86.999,86.979,3.49389255]
[1770523342402,3.56433573,87.009,86.981,3.49389255]
[1770523343699,3.56433573,87.008,86.981,3.49389255]
[1770523344198,3.56433573,87.008,86.974,11.49758906]
[1770523344385,3.56433573,86.999,86.974,11.49758906]
[1770523344584,3.56433573,86.999,86.969,11.4983133]
[1770523346102,3.56433573,86.999,86.968,3.49389255]
[1770523347093,3.56433573,86.989,86.963,3.49389255]
[1770523347381,3.56433573,86.989,86.956,3.49389255]
[1770523348287,3.56433573,86.987,86.956,3.49389255]
[1770523349792,3.56433573,86.987,86.956,14.99395258]
[1770523349998,3.56433573,86.987,86.957,3.49389255]
[1770523351101,3.56433573,86.985,86.957,3.49389255]
[1770523354005,3.56433573,86.985,86.959,3.49389255]
[1770523354904,3.56433573,86.995,86.961,3.49389255]
[1770523355478,5.36086188,87.026,86.958,11.4998045]
[1770523355479,3.56433573,87.008,86.971,3.49389255]
[1770523355703,3.56433573,87.008,86.973,3.69130088]
[1770523356409,3.68603306,86.999,86.973,3.69130088]
[1770523357097,4.06725583,87.0,86.938,11.50241809]
[1770523357098,3.68603306,86.979,86.938,11.50241809]
[1770523357311,3.68603306,86.959,86.938,11.50241809]
[1770523357491,3.68603306,86.959,86.938,3.69130088]
[1770523358104,3.68603306,86.972,86.941,3.69130088]
[1770523359786,3.68603306,86.972,86.943,3.69130088]
[1770523361408,3.68603306,86.979,86.943,3.69130088]
[1770523362492,3.68603306,86.979,86.945,3.69130088]
[1770523363703,10.81536726,86.998,86.92,4.06725583]
[1770523363704,3.68603306,86.991,86.951,3.69130088]
[1770523366028,3.68603306,86.991,86.953,3.69130088]
[1770523367209,3.68603306,86.991,86.955,3.69130088]
[1770523369702,3.68603306,86.991,86.957,3.69130088]
[1770523371510,3.68603306,86.989,86.959,3.69130088]
[1770523372910,3.68603306,86.989,86.961,3.69130088]
[1770523375414,3.68603306,86.989,86.963,3.69130088]
[1770523378318,3.68603306,86.989,86.965,3.69130088]
[1770523378610,3.68603306,86.979,86.956,3.69130088]
[1770523380219,3.68603306,86.979,86.957,3.69130088]
[1770523381114,3.68603306,86.966,86.848,57.11551833]
[1770523381317,3.68603306,86.929,86.89,4.16725583]
[1770523381505,3.68603306,86.929,86.89,0.1]
[1770523382396,3.68603306,86.929,86.895,28.77013388]
[1770523383015,3.68603306,86.929,86.896,3.69130088]
[1770523383805,3.68603306,86.929,86.898,3.69130088]
[1770523386127,3.68603306,86.929,86.899,11.50761228]
[1770523386327,3.68603306,86.929,86.9,3.57177044]
[1770523389033,3.61318734,86.939,86.902,3.57177044]
[1770523391122,3.61318734,86.939,86.904,3.57177044]
[1770523393729,3.53869898,86.929,86.906,3.41863925]
[1770523394335,3.53869898,86.929,86.9,11.50740618]
[1770523394538,11.50245002,86.938,86.9,11.50738974]
[1770523394539,3.53869898,86.919,86.9,11.50738974]
[1770523394718,3.53869898,86.919,86.901,3.41863925]
[1770523395648,3.53869898,86.924,86.901,3.41863925]
[1770523397335,4.06725583,86.92,86.903,3.41863925]
[1770523397539,3.53869898,86.924,86.903,3.41863925]
[1770523401520,5.13032502,86.959,86.91,4.07416573]
[1770523401521,4.07416573,86.95,86.91,4.07416573]
[1770523401727,4.07416573,86.95,86.911,3.41863925]
[1770523403560,3.53869898,86.949,86.913,3.41863925]
[1770523404433,3.53869898,86.939,86.913,3.41863925]
[1770523404950,3.53869898,86.944,86.913,3.41863925]
[1770523407751,3.53869898,86.944,86.915,3.41863925]
[1770523408747,3.53869898,86.939,86.916,11.50536149]
[1770523408933,3.53869898,86.939,86.917,3.41863925]
[1770523412950,3.53869898,86.937,86.908,3.41863925]
[1770523421743,4.07416573,86.95,86.911,3.53029111]
[1770523421949,3.69427473,86.949,86.911,3.53029111]
[1770523422150,3.69427473,86.949,86.921,3.53029111]
[1770523423347,3.69427473,86.949,86.923,3.53029111]
[1770523425760,3.69427473,86.929,86.906,11.50664003]
[1770523426446,3.69427473,86.929,86.905,3.53029111]
[1770523426646,3.69427473,86.929,86.905,11.50675162]
[1770523426847,3.69427473,86.929,86.906,3.53029111]
[1770523427762,3.69427473,86.929,86.909,11.50624709]
[1770523429756,3.69427473,86.929,86.909,3.53029111]
[1770523439972,3.69427473,86.937,86.909,3.53029111]
[1770523440170,3.69427473,86.937,86.911,3.53029111]
[1770523440676,3.69427473,86.958,86.921,3.53029111]
[1770523440968,3.69427473,86.958,86.931,3.53029111]
[1770523442480,3.69427473,86.958,86.933,3.53029111]
[1770523442975,3.69427473,86.969,86.941,3.53029111]
[1770523444666,3.69427473,86.969,86.942,11.50192082]
[1770523444868,3.69427473,86.969,86.943,3.53029111]
[1770523446778,3.69427473,86.969,86.945,3.46635736]
[1770523450379,3.60913952,86.959,86.94,3.46635736]
[1770523452081,3.60913952,86.968,86.942,3.46635736]
[1770523454390,3.60913952,86.968,86.944,3.5957657]
[1770523457582,3.60913952,86.968,86.946,3.5957657]
[1770523459690,3.60913952,86.968,86.948,3.5957657]
[1770523462492,3.50328256,86.975,86.95,3.5957657]
[1770523462689,3.50328256,86.989,86.951,3.5957657]
[1770523462885,3.50328256,86.989,86.961,3.5957657]
[1770523464292,3.50328256,86.989,86.963,3.5957657]
[1770523466373,3.50328256,86.989,86.965,3.5957657]
[1770523485112,3.44938313,86.995,86.967,3.43840772]
[1770523486001,3.44938313,86.995,86.971,3.43840772]
[1770523487001,3.44938313,86.995,86.973,3.43840772]
[1770523490915,3.44938313,86.995,86.975,3.43840772]
[1770523495502,3.44938313,87.002,86.977,3.43840772]
[1770523495703,3.44938313,87.002,86.981,3.43840772]
[1770523496215,3.44938313,87.002,86.983,3.43840772]
[1770523497211,3.44938313,87.002,86.985,3.43840772]
[1770523501614,3.44938313,87.002,86.979,3.43840772]
[1770523502516,3.44938313,87.002,86.979,11.4969839]
[1770523502721,3.44938313,87.002,86.98,3.43840772]
[1770523503422,3.44938313,87.002,86.987,3.43840772]
[1770523505027,3.44938313,87.017,86.989,3.43840772]
[1770523505844,3.33763734,87.021,86.991,3.58359863]
[1770523506007,15.75859572,87.03,87.001,3.58359863]
[1770523506008,3.33763734,87.029,87.001,3.58359863]
[1770523506818,3.33763734,87.029,87.003,3.58359863]
[1770523508934,0.2,87.04,87.005,3.58359863]
[1770523509235,0.2,87.04,87.021,3.58359863]
[1770523511224,0.2,87.04,87.022,11.49134701]
[1770523511433,0.2,87.04,87.023,3.58359863]
[1770523511828,0.2,87.04,87.022,11.49134701]
[1770523511829,3.33763734,87.054,87.024,3.58359863]
[1770523512533,3.33763734,87.054,87.031,3.58359863]
[1770523513528,3.471725,87.049,87.025,3.47272836]
[1770523513727,3.471725,87.039,87.016,3.47272836]
[1770523514141,11.48725489,87.053,86.974,57.48822572]
[1770523514142,3.471725,87.029,87.002,3.47272836]
[1770523514343,3.471725,87.019,86.996,3.47272836]
[1770523515726,3.471725,87.019,86.998,3.47272836]
[1770523516617,3.471725,87.037,86.998,3.47272836]
[1770523516817,3.471725,87.037,87.001,3.47272836]
[1770523517518,3.471725,87.037,87.003,3.47272836]
[1770523518135,3.471725,87.037,87.011,3.47272836]
[1770523520537,3.471725,87.037,87.013,3.47272836]
[1770523522033,3.471725,87.042,87.015,3.47272836]
[1770523525444,3.471725,87.042,87.017,3.47272836]
[1770523528242,3.471725,87.042,87.019,3.47272836]
[1770523531746,3.471725,87.042,87.02,11.49161112]
[1770523531954,3.471725,87.042,87.021,3.47272836]
[1770523532446,3.471725,87.04,87.013,3.47272836]
[1770523532633,3.471725,87.029,86.992,3.47272836]